Workbook

Sheet Sheet1
A1: Number | B1: Multiindex | C1: Mouse | D1: Condition | E1: Objective | F1: Folder | G1: Subfolder | H1: Recording idx | I1: Recording length | J1: Starting frame | K1: Analysis period | L1: Quiet periods | M1: Laser power, mW | N1: Important comments
A2: 0 | B2: TS_C_ISO_8237 | C2: 8237 | D2: awake | E2: 16 | F2: C:/specify_data_folder/ | G2: 20201027_GCaMP6f_8237_isoflurane/ | H2: 2 | I2: 7926 | J2: 0 | K2: 0, 5000 | L2: 0, 7500 | M2: 25
A3: 1 | B3: TS_C_ISO_8237 | C3: 8237 | D3: iso | E3: 16 | G3: 20201027_GCaMP6f_8237_isoflurane/ | H3: 3 | I3: 9000 | J3: =I2+J2 -> 7926 | K3: 0, 5000 | L3: 0, 9000 | M3: 25
A4: 2 | B4: TS_C_ISO_8237 | C4: 8237 | D4: rec30 | E4: 16 | G4: 20201027_GCaMP6f_8237_isoflurane/ | H4: 4 | I4: 6952 | J4: =I3+J3 -> 16926 | K4: 0, 5000 | L4: 0, 6500 | M4: 25
A5: 3 | B5: TS_C_ISO_8237 | C5: 8237 | D5: rec60 | E5: 16 | G5: 20201027_GCaMP6f_8237_isoflurane/ | H5: 5 | I5: 5498 | J5: =I4+J4 -> 23878 | K5: 0, 5000 | L5: 0, 5000 | M5: 25
A6: 4 | B6: TS_C_ISO_8237 | C6: 8237 | D6: rec120 | E6: 16 | G6: 20201027_GCaMP6f_8237_isoflurane/ | H6: 6 | I6: 11478 | J6: =I5+J5 -> 29376 | K6: 3000, 8000 | L6: 3000, 11000 | M6: 25
A7: 5 | B7: TS_C_ISO_8237 | C7: 8237 | D7: rec180 | E7: 16 | G7: 20201027_GCaMP6f_8237_isoflurane/ | H7: 7 | I7: 7520 | J7: =I6+J6 -> 40854 | K7: 0, 5000 | L7: 0, 7000 | M7: 25
A8: 6 | B8: TS_C_ISO_8237 | C8: 8237 | D8: rec240 | E8: 16 | G8: 20201027_GCaMP6f_8237_isoflurane/ | H8: 8 | I8: 14770 | J8: =I7+J7 -> 48374 | K8: 0, 5000 | L8: 0, 14770 | M8: 25
A9: 7 | B9: TS_C_ISO_8237 | C9: 8237 | D9: rec300 | E9: 16 | G9: 20201027_GCaMP6f_8237_isoflurane/ | H9: 9 | I9: 8693 | J9: =I8+J8 -> 63144 | K9: 0, 5000 | L9: 0, 8000 | M9: 25
A10: 8 | B10: TS_C_ISO_8237 | C10: 8237 | D10: rec360 | E10: 16 | G10: 20201027_GCaMP6f_8237_isoflurane/ | H10: 10 | I10: 8743 | J10: =I9+J9 -> 71837 | K10: 0, 5000 | L10: 0, 8000 | M10: 25
A11: 9 | B11: TS_C_KETA_8237 | C11: 8237 | D11: awake | E11: 16 | G11: 20201112_GCaMP6f_8237_keta/ | H11: 2 | I11: 7279 | J11: 0 | K11: 2000, 7000 | L11: 2000, 7000 | M11: 25 | N11: Baseline “awake” condition is recorded the day after other recordings
A12: 10 | B12: TS_C_KETA_8237 | C12: 8237 | D12: keta | E12: 16 | G12: 20201112_GCaMP6f_8237_keta/ | H12: 3 | I12: 9000 | J12: =I11+J11 -> 7279 | K12: 0, 5000 | L12: 0, 9000 | M12: 25
A13: 11 | B13: TS_C_KETA_8237 | C13: 8237 | D13: keta30 | E13: 16 | G13: 20201112_GCaMP6f_8237_keta/ | H13: 4 | I13: 10305 | J13: =I12+J12 -> 16279 | K13: 0, 5000 | L13: 0, 10000 | M13: 25
A14: 12 | B14: TS_C_KETA_8237 | C14: 8237 | D14: keta60 | E14: 16 | G14: 20201112_GCaMP6f_8237_keta/ | H14: 5 | I14: 9030 | J14: =I13+J13 -> 26584 | K14: 0, 5000 | L14: 0, 8000 | M14: 25
A15: 13 | B15: TS_C_KETA_8237 | C15: 8237 | D15: keta120 | E15: 16 | G15: 20201112_GCaMP6f_8237_keta/ | H15: 6 | I15: 18560 | J15: =I14+J14 -> 35614 | K15: 0, 5000 | L15: 0, 18000 | M15: 25
A16: 14 | B16: TS_C_KETA_8237 | C16: 8237 | D16: keta180 | E16: 16 | G16: 20201112_GCaMP6f_8237_keta/ | H16: 7 | I16: 7586 | J16: =I15+J15 -> 54174 | K16: 1000, 6000 | L16: 1000, 6500 | M16: 25
A17: 15 | B17: TS_C_KETA_8237 | C17: 8237 | D17: keta240 | E17: 16 | G17: 20201112_GCaMP6f_8237_keta/ | H17: 8 | I17: 10356 | J17: =I16+J16 -> 61760 | K17: 3000, 8000 | L17: 3000, 10000 | M17: 25
A18: 16 | B18: TS_C_KETA_8237 | C18: 8237 | D18: keta300 | E18: 16 | G18: 20201112_GCaMP6f_8237_keta/ | H18: 9 | I18: 10766 | J18: =I17+J17 -> 72116 | K18: 1000, 6000 | L18: 1000, 10000 | M18: 25
A19: 17 | B19: TS_C_KETA_8237 | C19: 8237 | D19: keta360 | E19: 16 | G19: 20201112_GCaMP6f_8237_keta/ | H19: 10 | I19: 8800 | J19: =I18+J18 -> 82882 | K19: 0, 5000 | L19: 0, 8000 | M19: 25
A20: 18 | B20: TS_C_MMF_8237 | C20: 8237 | D20: awake | E20: 16 | G20: 20201105_GCaMP6f_8237_MMF/ | H20: 2 | I20: 5694 | J20: 0 | K20: 0, 5000 | L20: 0,5000 | M20: 25
A21: 19 | B21: TS_C_MMF_8237 | C21: 8237 | D21: mmf | E21: 16 | G21: 20201105_GCaMP6f_8237_MMF/ | H21: 3 | I21: 9000 | J21: =I20+J20 -> 5694 | K21: 0, 5000 | L21: 0, 9000 | M21: 25
A22: 20 | B22: TS_C_MMF_8237 | C22: 8237 | D22: post30 | E22: 16 | G22: 20201105_GCaMP6f_8237_MMF/ | H22: 4 | I22: 7269 | J22: =I21+J21 -> 14694 | K22: 2100, 7100 | L22: 2100, 7100 | M22: 25
A23: 21 | B23: TS_C_MMF_8237 | C23: 8237 | D23: post60 | E23: 16 | G23: 20201105_GCaMP6f_8237_MMF/ | H23: 5 | I23: 15035 | J23: =I22+J22 -> 21963 | K23: 4000, 9000 | L23: 4000, 11000 | M23: 25
A24: 22 | B24: TS_C_MMF_8237 | C24: 8237 | D24: post120 | E24: 16 | G24: 20201105_GCaMP6f_8237_MMF/ | H24: 6 | I24: 16532 | J24: =I23+J23 -> 36998 | K24: 10500, 11000 | L24: 10500, 16000 | M24: 25
A25: 23 | B25: TS_C_MMF_8237 | C25: 8237 | D25: post180 | E25: 16 | G25: 20201105_GCaMP6f_8237_MMF/ | H25: 7 | I25: 8118 | J25: =I24+J24 -> 53530 | K25: 0, 5000 | L25: 0, 8000 | M25: 25
A26: 24 | B26: TS_C_MMF_8237 | C26: 8237 | D26: post240 | E26: 16 | G26: 20201105_GCaMP6f_8237_MMF/ | H26: 8 | I26: 9768 | J26: =I25+J25 -> 61648 | K26: 0, 5000 | L26: 0, 8000 | M26: 25
A27: 25 | B27: TS_C_MMF_8237 | C27: 8237 | D27: post300 | E27: 16 | G27: 20201105_GCaMP6f_8237_MMF/ | H27: 9 | I27: 6845 | J27: =I26+J26 -> 71416 | K27: 0, 5000 | L27: 0, 6000 | M27: 25
A28: 26 | B28: TS_C_MMF_8237 | C28: 8237 | D28: post360 | E28: 16 | G28: 20201105_GCaMP6f_8237_MMF/ | H28: 10 | I28: 6736 | J28: =I27+J27 -> 78261 | K28: 0, 5000 | L28: 0, 6000 | M28: 25
A29: 27 | B29: TS_C_ISO_8235 | C29: 8235 | D29: awake | E29: 16 | G29: 20201103_GCaMP6f_8235_iso/ | H29: 2 | I29: 8604 | J29: 0 | K29: 1100, 6100 | L29: 1100, 8600 | M29: 25
A30: 28 | B30: TS_C_ISO_8235 | C30: 8235 | D30: iso | E30: 16 | G30: 20201103_GCaMP6f_8235_iso/ | H30: 3 | I30: 9000 | J30: =I29+J29 -> 8604 | K30: 0, 5000 | L30: 0, 9000 | M30: 25
A31: 29 | B31: TS_C_ISO_8235 | C31: 8235 | D31: rec30 | E31: 16 | G31: 20201103_GCaMP6f_8235_iso/ | H31: 4 | I31: 8913 | J31: =I30+J30 -> 17604 | K31: 3200, 8200 | L31: 3200, 8600 | M31: 25
A32: 30 | B32: TS_C_ISO_8235 | C32: 8235 | D32: rec60 | E32: 16 | G32: 20201103_GCaMP6f_8235_iso/ | H32: 5 | I32: 8924 | J32: =I31+J31 -> 26517 | K32: 0, 5000 | L32: 0, 8800 | M32: 25
A33: 31 | B33: TS_C_ISO_8235 | C33: 8235 | D33: rec120 | E33: 16 | G33: 20201103_GCaMP6f_8235_iso/ | H33: 6 | I33: 9773 | J33: =I32+J32 -> 35441 | K33: 0, 5000 | L33: 0, 9000 | M33: 25
A34: 32 | B34: TS_C_ISO_8235 | C34: 8235 | D34: rec180 | E34: 16 | G34: 20201103_GCaMP6f_8235_iso/ | H34: 7 | I34: 7623 | J34: =I33+J33 -> 45214 | K34: 0, 5000 | L34: 0, 6500 | M34: 25
A35: 33 | B35: TS_C_ISO_8235 | C35: 8235 | D35: rec240 | E35: 16 | G35: 20201103_GCaMP6f_8235_iso/ | H35: 8 | I35: 8215 | J35: =I34+J34 -> 52837 | K35: 0, 5000 | L35: 0, 8000 | M35: 25
A36: 34 | B36: TS_C_ISO_8235 | C36: 8235 | D36: rec300 | E36: 16 | G36: 20201103_GCaMP6f_8235_iso/ | H36: 9 | I36: 7075 | J36: =I35+J35 -> 61052 | K36: 0, 5000 | L36: 0, 7000 | M36: 25
A37: 35 | B37: TS_C_ISO_8235 | C37: 8235 | D37: rec360 | E37: 16 | G37: 20201103_GCaMP6f_8235_iso/ | H37: 10 | I37: 5419 | J37: =I36+J36 -> 68127 | K37: 0, 5000 | L37: 0, 5000 | M37: 25
A38: 36 | B38: TS_C_KETA_8235 | C38: 8235 | D38: awake | E38: 16 | G38: 20201116_GCaMP6f_8235_keta/ | H38: 2 | I38: 5491 | J38: 0 | K38: 0, 5000 | L38: 0, 5000 | M38: 25
A39: 37 | B39: TS_C_KETA_8235 | C39: 8235 | D39: keta | E39: 16 | G39: 20201116_GCaMP6f_8235_keta/ | H39: 3 | I39: 9000 | J39: =I38+J38 -> 5491 | K39: 0, 5000 | L39: 0, 9000 | M39: 25
A40: 38 | B40: TS_C_KETA_8235 | C40: 8235 | D40: keta30 | E40: 16 | G40: 20201116_GCaMP6f_8235_keta/ | H40: 4 | I40: 9000 | J40: =I39+J39 -> 14491 | K40: 0, 5000 | L40: 0, 9000 | M40: 25
A41: 39 | B41: TS_C_KETA_8235 | C41: 8235 | D41: keta60 | E41: 16 | G41: 20201116_GCaMP6f_8235_keta/ | H41: 5 | I41: 9101 | J41: =I40+J40 -> 23491 | K41: 0, 5000 | L41: 0, 9000 | M41: 25
A42: 40 | B42: TS_C_KETA_8235 | C42: 8235 | D42: keta120 | E42: 16 | G42: 20201116_GCaMP6f_8235_keta/ | H42: 6 | I42: 8299 | J42: =I41+J41 -> 32592 | K42: 1000, 6000 | L42: 1000, 8000 | M42: 25
A43: 41 | B43: TS_C_KETA_8235 | C43: 8235 | D43: keta180 | E43: 16 | G43: 20201116_GCaMP6f_8235_keta/ | H43: 7 | I43: 10260 | J43: =I42+J42 -> 40891 | K43: 1000, 6000 | L43: 1000, 10000 | M43: 25
A44: 42 | B44: TS_C_KETA_8235 | C44: 8235 | D44: keta240 | E44: 16 | G44: 20201116_GCaMP6f_8235_keta/ | H44: 8 | I44: 9123 | J44: =I43+J43 -> 51151 | K44: 1000, 6000 | L44: 0, 9000 | M44: 25
A45: 43 | B45: TS_C_KETA_8235 | C45: 8235 | D45: keta300 | E45: 16 | G45: 20201116_GCaMP6f_8235_keta/ | H45: 9 | I45: 7039 | J45: =I44+J44 -> 60274 | K45: 0, 5000 | L45: 0, 5000 | M45: 25
A46: 44 | B46: TS_C_KETA_8235 | C46: 8235 | D46: keta360 | E46: 16 | G46: 20201116_GCaMP6f_8235_keta/ | H46: 10 | I46: 12578 | J46: =I45+J45 -> 67313 | K46: 3500, 8500 | L46: 3500, 12500 | M46: 25
A47: 45 | B47: TS_C_MMF_8235 | C47: 8235 | D47: awake | E47: 16 | G47: 20201111_GCaMP6f_8235_MMF/ | H47: 2 | I47: 6195 | J47: 0 | K47: 0, 5000 | L47: 0, 5000 | M47: 25
A48: 46 | B48: TS_C_MMF_8235 | C48: 8235 | D48: mmf | E48: 16 | G48: 20201111_GCaMP6f_8235_MMF/ | H48: 3 | I48: 9000 | J48: =I47+J47 -> 6195 | K48: 0, 5000 | L48: 0, 9000 | M48: 25
A49: 47 | B49: TS_C_MMF_8235 | C49: 8235 | D49: post30 | E49: 16 | G49: 20201111_GCaMP6f_8235_MMF/ | H49: 4 | I49: 9136 | J49: =I48+J48 -> 15195 | K49: 0, 5000 | L49: 0, 9000 | M49: 25
A50: 48 | B50: TS_C_MMF_8235 | C50: 8235 | D50: post60 | E50: 16 | G50: 20201111_GCaMP6f_8235_MMF/ | H50: 5 | I50: 10523 | J50: =I49+J49 -> 24331 | K50: 3000, 8000 | L50: 0, 10000 | M50: 25
A51: 49 | B51: TS_C_MMF_8235 | C51: 8235 | D51: post120 | E51: 16 | G51: 20201111_GCaMP6f_8235_MMF/ | H51: 6 | I51: 8854 | J51: =I50+J50 -> 34854 | K51: 0, 5000 | L51: 0, 8000 | M51: 25
A52: 50 | B52: TS_C_MMF_8235 | C52: 8235 | D52: post180 | E52: 16 | G52: 20201111_GCaMP6f_8235_MMF/ | H52: 7 | I52: 5070 | J52: =I51+J51 -> 43708 | K52: 0, 5000 | L52: 0, 5000 | M52: 25
A53: 51 | B53: TS_C_MMF_8235 | C53: 8235 | D53: post240 | E53: 16 | G53: 20201111_GCaMP6f_8235_MMF/ | H53: 8 | I53: 9760 | J53: =I52+J52 -> 48778 | K53: 3000, 8000 | L53: 3000, 9000 | M53: 25
A54: 52 | B54: TS_C_MMF_8235 | C54: 8235 | D54: post300 | E54: 16 | G54: 20201111_GCaMP6f_8235_MMF/ | H54: 9 | I54: 6790 | J54: =I53+J53 -> 58538 | K54: 0, 5000 | L54: 0, 6000 | M54: 25
A55: 53 | B55: TS_C_MMF_8235 | C55: 8235 | D55: post360 | E55: 16 | G55: 20201111_GCaMP6f_8235_MMF/ | H55: 10 | I55: 6724 | J55: =I54+J54 -> 65328 | K55: 0, 5000 | L55: 0, 6000 | M55: 25
A56: 54 | B56: TS_C_ISO_8238 | C56: 8238 | D56: awake | E56: 16 | G56: 20201102_GCaMP6f_8238_iso/ | H56: 2 | I56: 6160 | J56: 0 | K56: 200, 5200 | L56: 200, 5500 | M56: 25 | N56: The effect size is threshold-dependent (!)
A57: 55 | B57: TS_C_ISO_8238 | C57: 8238 | D57: iso | E57: 16 | G57: 20201102_GCaMP6f_8238_iso/ | H57: 3 | I57: 9000 | J57: =I56+J56 -> 6160 | K57: 0, 5000 | L57: 0, 9000 | M57: 25
A58: 56 | B58: TS_C_ISO_8238 | C58: 8238 | D58: rec30 | E58: 16 | G58: 20201102_GCaMP6f_8238_iso/ | H58: 4 | I58: 7064 | J58: =I57+J57 -> 15160 | K58: 0, 5000 | L58: 0, 6500 | M58: 25
A59: 57 | B59: TS_C_ISO_8238 | C59: 8238 | D59: rec60 | E59: 16 | G59: 20201102_GCaMP6f_8238_iso/ | H59: 5 | I59: 13831 | J59: =I58+J58 -> 22224 | K59: 6500, 11500 | L59: 6500, 13500 | M59: 25
A60: 58 | B60: TS_C_ISO_8238 | C60: 8238 | D60: rec120 | E60: 16 | G60: 20201102_GCaMP6f_8238_iso/ | H60: 6 | I60: 11481 | J60: =I59+J59 -> 36055 | K60: 2600, 7600 | L60: 2600, 11000 | M60: 25
A61: 59 | B61: TS_C_ISO_8238 | C61: 8238 | D61: rec180 | E61: 16 | G61: 20201102_GCaMP6f_8238_iso/ | H61: 7 | I61: 16170 | J61: =I60+J60 -> 47536 | K61: 9000, 14000 | L61: 9000, 15000 | M61: 25
A62: 60 | B62: TS_C_ISO_8238 | C62: 8238 | D62: rec240 | E62: 16 | G62: 20201102_GCaMP6f_8238_iso/ | H62: 8 | I62: 12094 | J62: =I61+J61 -> 63706 | K62: 5500, 10500 | L62: 5500, 11500 | M62: 25
A63: 61 | B63: TS_C_ISO_8238 | C63: 8238 | D63: rec300 | E63: 16 | G63: 20201102_GCaMP6f_8238_iso/ | H63: 9 | I63: 18595 | J63: =I62+J62 -> 75800 | K63: 0, 5000 | L63: 0, 5000 | M63: 25
A64: 62 | B64: TS_C_ISO_8238 | C64: 8238 | D64: rec360 | E64: 16 | G64: 20201102_GCaMP6f_8238_iso/ | H64: 10 | I64: 33970 | J64: =I63+J63 -> 94395 | K64: 0, 5000 | L64: 0, 33970 | M64: 25
A65: 63 | B65: TS_C_KETA_8238 | C65: 8238 | D65: awake | E65: 16 | G65: 20201115_GCaMP6f_8238_keta/ | H65: 2 | I65: 7311 | J65: 0 | K65: 2500, 6500 | L65: 2500, 6500 | M65: 25
A66: 64 | B66: TS_C_KETA_8238 | C66: 8238 | D66: keta | E66: 16 | G66: 20201115_GCaMP6f_8238_keta/ | H66: 3 | I66: 9000 | J66: =I65+J65 -> 7311 | K66: 0, 5000 | L66: 0, 9000 | M66: 25
A67: 65 | B67: TS_C_KETA_8238 | C67: 8238 | D67: keta30 | E67: 16 | G67: 20201115_GCaMP6f_8238_keta/ | H67: 4 | I67: 6917 | J67: =I66+J66 -> 16311 | K67: 0, 5000 | L67: 0, 6000 | M67: 25
A68: 66 | B68: TS_C_KETA_8238 | C68: 8238 | D68: keta60 | E68: 16 | G68: 20201115_GCaMP6f_8238_keta/ | H68: 5 | I68: 5284 | J68: =I67+J67 -> 23228 | K68: 0, 5000 | L68: 0, 5000 | M68: 25
A69: 67 | B69: TS_C_KETA_8238 | C69: 8238 | D69: keta120 | E69: 16 | G69: 20201115_GCaMP6f_8238_keta/ | H69: 6 | I69: 7563 | J69: =I68+J68 -> 28512 | K69: 0, 5000 | L69: 0, 7000 | M69: 25
A70: 68 | B70: TS_C_KETA_8238 | C70: 8238 | D70: keta180 | E70: 16 | G70: 20201115_GCaMP6f_8238_keta/ | H70: 7 | I70: 9438 | J70: =I69+J69 -> 36075 | K70: 0, 5000 | L70: 0, 9000 | M70: 25
A71: 69 | B71: TS_C_KETA_8238 | C71: 8238 | D71: keta240 | E71: 16 | G71: 20201115_GCaMP6f_8238_keta/ | H71: 8 | I71: 10403 | J71: =I70+J70 -> 45513 | K71: 0, 5000 | L71: 0, 10000 | M71: 25
A72: 70 | B72: TS_C_KETA_8238 | C72: 8238 | D72: keta300 | E72: 16 | G72: 20201115_GCaMP6f_8238_keta/ | H72: 9 | I72: 7623 | J72: =I71+J71 -> 55916 | K72: 0, 5000 | L72: 0, 7000 | M72: 25
A73: 71 | B73: TS_C_KETA_8238 | C73: 8238 | D73: keta360 | E73: 16 | G73: 20201115_GCaMP6f_8238_keta/ | H73: 10 | I73: 10629 | J73: =I72+J72 -> 63539 | K73: 4000, 9000 | L73: 4000, 10000 | M73: 25
A74: 72 | B74: TS_C_MMF_8238 | C74: 8238 | D74: awake | E74: 16 | G74: 20201110_GCaMP6f_8238_MMF/ | H74: 2 | I74: 10254 | J74: 0 | K74: 1000, 6000 | L74: 1000, 10000 | M74: 25
A75: 73 | B75: TS_C_MMF_8238 | C75: 8238 | D75: mmf | E75: 16 | G75: 20201110_GCaMP6f_8238_MMF/ | H75: 3 | I75: 9000 | J75: =I74+J74 -> 10254 | K75: 0, 5000 | L75: 0, 9000 | M75: 25
A76: 74 | B76: TS_C_MMF_8238 | C76: 8238 | D76: post30 | E76: 16 | G76: 20201110_GCaMP6f_8238_MMF/ | H76: 4 | I76: 7019 | J76: =I75+J75 -> 19254 | K76: 0, 5000 | L76: 0, 7000 | M76: 25
A77: 75 | B77: TS_C_MMF_8238 | C77: 8238 | D77: post60 | E77: 16 | G77: 20201110_GCaMP6f_8238_MMF/ | H77: 5 | I77: 9124 | J77: =I76+J76 -> 26273 | K77: 0, 5000 | L77: 0, 9000 | M77: 25
A78: 76 | B78: TS_C_MMF_8238 | C78: 8238 | D78: post120 | E78: 16 | G78: 20201110_GCaMP6f_8238_MMF/ | H78: 6 | I78: 6518 | J78: =I77+J77 -> 35397 | K78: 0, 5000 | L78: 0, 5000 | M78: 25
A79: 77 | B79: TS_C_MMF_8238 | C79: 8238 | D79: post180 | E79: 16 | G79: 20201110_GCaMP6f_8238_MMF/ | H79: 7 | I79: 12873 | J79: =I78+J78 -> 41915 | K79: 4300, 9300 | L79: 4300, 12400 | M79: 25
A80: 78 | B80: TS_C_MMF_8238 | C80: 8238 | D80: post240 | E80: 16 | G80: 20201110_GCaMP6f_8238_MMF/ | H80: 8 | I80: 9166 | J80: =I79+J79 -> 54788 | K80: 3300, 8300 | L80: 3300, 8300 | M80: 25
A81: 79 | B81: TS_C_MMF_8238 | C81: 8238 | D81: post300 | E81: 16 | G81: 20201110_GCaMP6f_8238_MMF/ | H81: 9 | I81: 9146 | J81: =I80+J80 -> 63954 | K81: 1800, 6800 | L81: 1800, 7800 | M81: 25
A82: 80 | B82: TS_C_MMF_8238 | C82: 8238 | D82: post360 | E82: 16 | G82: 20201110_GCaMP6f_8238_MMF/ | H82: 10 | I82: 7379 | J82: =I81+J81 -> 73100 | K82: 1000, 6000 | L82: 1000, 6500 | M82: 25
A83: 81 | B83: TS_C_AWAKE_CTRL_8237 | C83: 8237 | D83: awake1 | E83: 16 | G83: 20201005_GCaMP6f_8237_awake_2/ | H83: 2 | I83: 12972 | J83: 0 | K83: 0, 5000 | L83: 0,10000 | M83: 31 | N83: Peak at 1-2 Hz band
A84: 82 | B84: TS_C_AWAKE_CTRL_8237 | C84: 8237 | D84: awake2 | E84: 16 | G84: 20201005_GCaMP6f_8237_awake_2/ | H84: 3 | I84: 18064 | J84: =I83+J83 -> 12972 | K84: 3000, 8000 | L84: 3000, 17000 | M84: 31
A85: 83 | B85: TS_C_AWAKE_CTRL_8237 | C85: 8237 | D85: awake3 | E85: 16 | G85: 20201005_GCaMP6f_8237_awake_2/ | H85: 4 | I85: 17981 | J85: =I84+J84 -> 31036 | K85: 600011000 | L85: 6000, 17000 | M85: 31
A86: 84 | B86: TS_C_AWAKE_CTRL_8237 | C86: 8237 | D86: awake4 | E86: 16 | G86: 20201005_GCaMP6f_8237_awake_2/ | H86: 5 | I86: 9587 | J86: =I85+J85 -> 49017 | K86: 0, 5000 | L86: 0, 9000 | M86: 31
A87: 85 | B87: TS_C_AWAKE_CTRL_8237 | C87: 8237 | D87: awake5 | E87: 16 | G87: 20201005_GCaMP6f_8237_awake_2/ | H87: 6 | I87: 12828 | J87: =I86+J86 -> 58604 | K87: 0, 5000 | L87: 0, 11000 | M87: 31
A88: 86 | B88: TS_C_AWAKE_CTRL_8237 | C88: 8237 | D88: awake6 | E88: 16 | G88: 20201005_GCaMP6f_8237_awake_2/ | H88: 7 | I88: 17575 | J88: =I87+J87 -> 71432 | K88: 0, 5000 | L88: 0, 15000 | M88: 31
A89: 87 | B89: TS_C_AWAKE_CTRL_8237 | C89: 8237 | D89: awake7 | E89: 16 | G89: 20201005_GCaMP6f_8237_awake_2/ | H89: 8 | I89: 8486 | J89: =I88+J88 -> 89007 | K89: 0, 5000 | L89: 0, 8000 | M89: 31
A90: 88 | B90: TS_C_AWAKE_CTRL_8238 | C90: 8238 | D90: awake1 | E90: 16 | G90: 20201028_GCaMP6f_8238_awake/ | H90: 2 | I90: 9212 | J90: 0 | K90: 0, 5000 | L90: 0, 4000 | M90: 25
A91: 89 | B91: TS_C_AWAKE_CTRL_8238 | C91: 8238 | D91: awake2 | E91: 16 | G91: 20201028_GCaMP6f_8238_awake/ | H91: 3 | I91: 12065 | J91: =I90+J90 -> 9212 | K91: 3000, 8000 | L91: 0, 8000 | M91: 25
A92: 90 | B92: TS_C_AWAKE_CTRL_8238 | C92: 8238 | D92: awake3 | E92: 16 | G92: 20201028_GCaMP6f_8238_awake/ | H92: 4 | I92: 8252 | J92: =I91+J91 -> 21277 | K92: 0, 7500 | L92: 0, 7500 | M92: 25
A93: 91 | B93: TS_C_AWAKE_CTRL_8238 | C93: 8238 | D93: awake4 | E93: 16 | G93: 20201028_GCaMP6f_8238_awake/ | H93: 5 | I93: 12151 | J93: =I92+J92 -> 29529 | K93: 4000, 9000 | L93: 4000, 12000 | M93: 25
A94: 92 | B94: TS_C_AWAKE_CTRL_8238 | C94: 8238 | D94: awake5 | E94: 16 | G94: 20201028_GCaMP6f_8238_awake/ | H94: 6 | I94: 8944 | J94: =I93+J93 -> 41680 | K94: 0, 5000 | L94: 0, 8000 | M94: 25
A95: 93 | B95: TS_C_AWAKE_CTRL_8238 | C95: 8238 | D95: awake6 | E95: 16 | G95: 20201028_GCaMP6f_8238_awake/ | H95: 7 | I95: 9844 | J95: =I94+J94 -> 50624 | K95: 2500, 7500 | L95: 2500, 8500 | M95: 25
A96: 94 | B96: TS_C_AWAKE_CTRL_8238 | C96: 8238 | D96: awake7 | E96: 16 | G96: 20201028_GCaMP6f_8238_awake/ | H96: 8 | I96: 7525 | J96: =I95+J95 -> 60468 | K96: 0, 5000 | L96: 0, 6500 | M96: 25
A97: 95 | B97: TS_C_AWAKE_CTRL_8235 | C97: 8235 | D97: awake1 | E97: 16 | G97: 20201029_GCaMP6f_8235_awake/ | H97: 2 | I97: 11079 | J97: 0 | K97: 0, 5000 | L97: 0, 11000 | M97: 25
A98: 96 | B98: TS_C_AWAKE_CTRL_8235 | C98: 8235 | D98: awake2 | E98: 16 | G98: 20201029_GCaMP6f_8235_awake/ | H98: 3 | I98: 12239 | J98: =I97+J97 -> 11079 | K98: 0, 5000 | L98: 0, 12000 | M98: 25
A99: 97 | B99: TS_C_AWAKE_CTRL_8235 | C99: 8235 | D99: awake3 | E99: 16 | G99: 20201029_GCaMP6f_8235_awake/ | H99: 4 | I99: 15028 | J99: =I98+J98 -> 23318 | K99: 0, 5000 | L99: 0, 7000 | M99: 25
A100: 98 | B100: TS_C_AWAKE_CTRL_8235 | C100: 8235 | D100: awake4 | E100: 16 | G100: 20201029_GCaMP6f_8235_awake/ | H100: 5 | I100: 19743 | J100: =I99+J99 -> 38346 | K100: 0, 5000 | L100: 0, 19000 | M100: 25
A101: 99 | B101: TS_C_AWAKE_CTRL_8235 | C101: 8235 | D101: awake5 | E101: 16 | G101: 20201029_GCaMP6f_8235_awake/ | H101: 6 | I101: 10852 | J101: =I100+J100 -> 58089 | K101: 0, 5000 | L101: 0, 10000 | M101: 25
A102: 100 | B102: TS_C_AWAKE_CTRL_8235 | C102: 8235 | D102: awake6 | E102: 16 | G102: 20201029_GCaMP6f_8235_awake/ | H102: 7 | I102: 7663 | J102: =I101+J101 -> 68941 | K102: 0, 5000 | L102: 0, 7000 | M102: 25
A103: 101 | B103: TS_C_AWAKE_CTRL_8235 | C103: 8235 | D103: awake7 | E103: 16 | G103: 20201029_GCaMP6f_8235_awake/ | H103: 8 | I103: 9406 | J103: =I102+J102 -> 76604 | K103: 0, 5000 | L103: 0, 9400 | M103: 25
A104: 102 | B104: TS_C_ISO_F0 | C104: F0 | D104: awake | E104: 16 | G104: 20200504_GCaMP6f_mouse#F0_iso_2/ | H104: 2 | I104: 18000 | J104: 0 | K104: 8000, 13000 | L104: 4500, 18000 | M104: 12
A105: 103 | B105: TS_C_ISO_F0 | C105: F0 | D105: iso | E105: 16 | G105: 20200504_GCaMP6f_mouse#F0_iso_2/ | H105: 3 | I105: 18000 | J105: =I104+J104 -> 18000 | K105: 8000, 13000 | L105: 0,18000 | M105: 12
A106: 104 | B106: TS_C_ISO_F0 | C106: F0 | D106: rec30 | E106: 16 | G106: 20200504_GCaMP6f_mouse#F0_iso_2/ | H106: 4 | I106: 13125 | J106: =I105+J105 -> 36000 | K106: 5000, 10000 | L106: 3200, 12000 | M106: 12
A107: 105 | B107: TS_C_ISO_F0 | C107: F0 | D107: rec60 | E107: 16 | G107: 20200504_GCaMP6f_mouse#F0_iso_2/ | H107: 5 | I107: 11097 | J107: =I106+J106 -> 49125 | K107: 5000, 10000 | L107: 0, 11000 | M107: 12
A108: 106 | B108: TS_C_ISO_F0 | C108: F0 | D108: rec120 | E108: 16 | G108: 20200504_GCaMP6f_mouse#F0_iso_2/ | H108: 6 | I108: 18000 | J108: =I107+J107 -> 60222 | K108: 10000, 15000 | L108: 0, 18000 | M108: 12
A109: 107 | B109: TS_C_ISO_F0 | C109: F0 | D109: rec180 | E109: 16 | G109: 20200504_GCaMP6f_mouse#F0_iso_2/ | H109: 7 | I109: 10327 | J109: =I108+J108 -> 78222 | K109: 2000, 7000 | L109: 0, 10000 | M109: 12
A110: 108 | B110: TS_C_ISO_F0 | C110: F0 | D110: rec240 | E110: 16 | G110: 20200504_GCaMP6f_mouse#F0_iso_2/ | H110: 8 | I110: 10455 | J110: =I109+J109 -> 88549 | K110: 2000, 7000 | L110: 0, 10000 | M110: 12
A111: 109 | B111: TS_C_ISO_F0 | C111: F0 | D111: rec300 | E111: 16 | G111: 20200504_GCaMP6f_mouse#F0_iso_2/ | H111: 9 | I111: 11576 | J111: =I110+J110 -> 99004 | K111: 4000, 9000 | L111: 0, 11000 | M111: 12
A112: 110 | B112: TS_C_ISO_F0 | C112: F0 | D112: rec360 | E112: 16 | G112: 20200504_GCaMP6f_mouse#F0_iso_2/ | H112: 10 | I112: 15557 | J112: =I111+J111 -> 110580 | K112: 8000, 13000 | L112: 1000, 15000 | M112: 12
A113: 111 | B113: TS_C_KETA_F0 | C113: F0 | D113: awake | E113: 16 | G113: 20200416_GCaMP6f_mouse#F0_keta/ | H113: 3 | I113: 8861 | J113: =7696+6616 -> 14312 | K113: 50, 5050 | L113: 50, 8500 | M113: 11 | N113: Recording with pupil; WY_00001.tif (7696 frames) and WY_00002.tif (6616 frames) are supposed to be not good. I skip it adding 14312 frames in starting position
A114: 112 | B114: TS_C_KETA_F0 | C114: F0 | D114: keta | E114: 16 | G114: 20200416_GCaMP6f_mouse#F0_keta/ | H114: 4 | I114: 18000 | J114: =I113+J113 -> 23173 | K114: 7500,12500 | L114: 7500, 17500 | M114: 11
A115: 113 | B115: TS_C_KETA_F0 | C115: F0 | D115: keta30 | E115: 16 | G115: 20200416_GCaMP6f_mouse#F0_keta/ | H115: 5 | I115: 8573 | J115: =I114+J114 -> 41173 | K115: 3000, 8000 | L115: 0, 9000 | M115: 11 | N115: Shrinked from (0,5000) to (50,4950)
A116: 114 | B116: TS_C_KETA_F0 | C116: F0 | D116: keta60 | E116: 16 | G116: 20200416_GCaMP6f_mouse#F0_keta/ | H116: 6 | I116: 11200 | J116: =I115+J115 -> 49746 | K116: 2000, 7000 | L116: 200, 10000 | M116: 11 | N116: Shrinked from (200,5200) to (350,5200)
A117: 115 | B117: TS_C_KETA_F0 | C117: F0 | D117: keta120 | E117: 16 | G117: 20200416_GCaMP6f_mouse#F0_keta/ | H117: 7 | I117: 12043 | J117: =I116+J116 -> 60946 | K117: 1000,6000 | L117: 1000, 7000 | M117: 11 | N117: 8000-12000
A118: 116 | B118: TS_C_KETA_F0 | C118: F0 | D118: keta180 | E118: 16 | G118: 20200416_GCaMP6f_mouse#F0_keta/ | H118: 8 | I118: 12300 | J118: =I117+J117 -> 72989 | K118: 4000,9000 | L118: 4000, 12000 | M118: 11
A119: 117 | B119: TS_C_KETA_F0 | C119: F0 | D119: keta240 | E119: 16 | G119: 20200416_GCaMP6f_mouse#F0_keta/ | H119: 9 | I119: 18000 | J119: =I118+J118 -> 85289 | K119: 0,17500 | L119: 0, 17500 | M119: 11
A120: 118 | B120: TS_C_KETA_F0 | C120: F0 | D120: keta300 | E120: 16 | G120: 20200416_GCaMP6f_mouse#F0_keta/ | H120: 10 | I120: 15224 | J120: =I119+J119 -> 103289 | K120: 0,5000 | L120: 0, 9000 | M120: 11 | N120: 10000,15000
A121: 119 | B121: TS_C_KETA_F0 | C121: F0 | D121: keta360 | E121: 16 | G121: 20200416_GCaMP6f_mouse#F0_keta/ | H121: 11 | I121: 18000 | J121: =I120+J120 -> 118513 | K121: 5000,10000 | L121: 5000, 17000 | M121: 11
A122: 120 | B122: TS_C_MMF_F0 | C122: F0 | D122: awake | E122: 16 | G122: 20200427_GCaMP6f_mouse#F0_MMF/ | H122: 3 | I122: 10304 | J122: 0 | K122: 5000, 10000 | L122: 3600, 10000 | M122: 11
A123: 121 | B123: TS_C_MMF_F0 | C123: F0 | D123: mmf | E123: 16 | G123: 20200427_GCaMP6f_mouse#F0_MMF/ | H123: 4 | I123: 18000 | J123: =I122+J122 -> 10304 | K123: 5000, 10000 | L123: 0, 18000 | M123: 11
A124: 122 | B124: TS_C_MMF_F0 | C124: F0 | D124: post30 | E124: 16 | G124: 20200427_GCaMP6f_mouse#F0_MMF/ | H124: 5 | I124: 10097 | J124: =I123+J123 -> 28304 | K124: 5000, 10000 | L124: 0, 10097 | M124: 11
A125: 123 | B125: TS_C_MMF_F0 | C125: F0 | D125: post60 | E125: 16 | G125: 20200427_GCaMP6f_mouse#F0_MMF/ | H125: 6 | I125: 12014 | J125: =I124+J124 -> 38401 | K125: 500, 5500 | L125: 0, 12014 | M125: 11
A126: 124 | B126: TS_C_MMF_F0 | C126: F0 | D126: post120 | E126: 16 | G126: 20200427_GCaMP6f_mouse#F0_MMF/ | H126: 7 | I126: 9912 | J126: =I125+J125 -> 50415 | K126: 4000, 9000 | L126: 0, 9800 | M126: 11
A127: 125 | B127: TS_C_MMF_F0 | C127: F0 | D127: post180 | E127: 16 | G127: 20200427_GCaMP6f_mouse#F0_MMF/ | H127: 8 | I127: 9408 | J127: =I126+J126 -> 60327 | K127: 25, 4500 | L127: 0, 8900 | M127: 11
A128: 126 | B128: TS_C_MMF_F0 | C128: F0 | D128: post240 | E128: 16 | G128: 20200427_GCaMP6f_mouse#F0_MMF/ | H128: 9 | I128: 16408 | J128: =I127+J127 -> 69735 | K128: 11000, 16000 | L128: 7000, 16000 | M128: 11 | N128: Noisy
A129: 127 | B129: TS_C_MMF_F0 | C129: F0 | D129: post300 | E129: 16 | G129: 20200427_GCaMP6f_mouse#F0_MMF/ | H129: 10 | I129: 6111 | J129: =I128+J128 -> 86143 | K129: 250, 4750 | L129: 0, 5700 | M129: 11
A130: 128 | B130: TS_C_MMF_F0 | C130: F0 | D130: post360 | E130: 16 | G130: 20200427_GCaMP6f_mouse#F0_MMF/ | H130: 11 | I130: 9268 | J130: =I129+J129 -> 92254 | K130: 1000, 6000 | L130: 0, 9000 | M130: 11
A131: 129 | B131: TS_C_KETA_M3 | C131: M3 | D131: awake | E131: 16 | G131: 20200511_GCaMP6f_mouse#M3_keta/ | H131: 2 | I131: 9591 | J131: 0 | K131: 3000, 8000 | L131: 3000, 9000 | M131: 60
A132: 130 | B132: TS_C_KETA_M3 | C132: M3 | D132: keta | E132: 16 | G132: 20200511_GCaMP6f_mouse#M3_keta/ | H132: 3 | I132: 18000 | J132: =I131+J131 -> 9591 | K132: 250, 5250 | L132: 0, 18000 | M132: 60
A133: 131 | B133: TS_C_KETA_M3 | C133: M3 | D133: keta30 | E133: 16 | G133: 20200511_GCaMP6f_mouse#M3_keta/ | H133: 4 | I133: 8538 | J133: =I132+J132 -> 27591 | K133: 1200, 6200 | L133: 1200, 7800 | M133: 60
A134: 132 | B134: TS_C_KETA_M3 | C134: M3 | D134: keta60 | E134: 16 | G134: 20200511_GCaMP6f_mouse#M3_keta/ | H134: 5 | I134: 15846 | J134: =I133+J133 -> 36129 | K134: 9000, 14000 | L134: 9000, 15000 | M134: 60 | N134: small artefacts (peaks upside down)
A135: 133 | B135: TS_C_KETA_M3 | C135: M3 | D135: keta120 | E135: 16 | G135: 20200511_GCaMP6f_mouse#M3_keta/ | H135: 6 | I135: 10807 | J135: =I134+J134 -> 51975 | K135: 5500, 10500 | L135: 5500, 10600 | M135: 60 | N135: small artefacts (peaks upside down)
A136: 134 | B136: TS_C_KETA_M3 | C136: M3 | D136: keta180 | E136: 16 | G136: 20200511_GCaMP6f_mouse#M3_keta/ | H136: 7 | I136: 16773 | J136: =I135+J135 -> 62782 | K136: 5000, 10000 | L136: 5000, 16000 | M136: 60
A137: 135 | B137: TS_C_KETA_M3 | C137: M3 | D137: keta240 | E137: 16 | G137: 20200511_GCaMP6f_mouse#M3_keta/ | H137: 8 | I137: 10023 | J137: =I136+J136 -> 79555 | K137: 1000, 6000 | L137: 1000, 10000 | M137: 60
A138: 136 | B138: TS_C_KETA_M3 | C138: M3 | D138: keta300 | E138: 16 | G138: 20200511_GCaMP6f_mouse#M3_keta/ | H138: 9 | I138: 10764 | J138: =I137+J137 -> 89578 | K138: 1000, 6000 | L138: 1000, 10000 | M138: 60
A139: 137 | B139: TS_C_KETA_M3 | C139: M3 | D139: keta360 | E139: 16 | G139: 20200511_GCaMP6f_mouse#M3_keta/ | H139: 10 | I139: 11720 | J139: =I138+J138 -> 100342 | K139: 0, 5000 | L139: 0, 10000 | M139: 60
A140: 138 | B140: TS_C_ISO_M0 | C140: M0 | D140: awake | E140: 16 | G140: 20200425_GCaMP6f_mouse#M0_iso/ | H140: 2 | I140: 7101 | J140: 0 | K140: 0, 5000 | L140: 0, 6900 | M140: 89 | N140: Noise from the UV LED (can be subsequently removed with extraction and classification algorithm)
A141: 139 | B141: TS_C_ISO_M0 | C141: M0 | D141: iso | E141: 16 | G141: 20200425_GCaMP6f_mouse#M0_iso/ | H141: 3 | I141: 18000 | J141: =I140+J140 -> 7101 | K141: 0, 5000 | L141: 0, 18000 | M141: 89 | N141: same
A142: 140 | B142: TS_C_ISO_M0 | C142: M0 | D142: rec30 | E142: 16 | G142: 20200425_GCaMP6f_mouse#M0_iso/ | H142: 4 | I142: 8384 | J142: =I141+J141 -> 25101 | K142: 0, 5000 | L142: 0, 8384 | M142: 89 | N142: same
A143: 141 | B143: TS_C_ISO_M0 | C143: M0 | D143: rec60 | E143: 16 | G143: 20200425_GCaMP6f_mouse#M0_iso/ | H143: 5 | I143: 12046 | J143: =I142+J142 -> 33485 | K143: 3000, 8000 | L143: 0,12000 | M143: 89 | N143: same
A144: 142 | B144: TS_C_ISO_M0 | C144: M0 | D144: rec120 | E144: 16 | G144: 20200425_GCaMP6f_mouse#M0_iso/ | H144: 6 | I144: 8787 | J144: =I143+J143 -> 45531 | K144: 2000, 7000 | L144: 0, 8700 | M144: 89 | N144: same
A145: 143 | B145: TS_C_ISO_M0 | C145: M0 | D145: rec180 | E145: 16 | G145: 20200425_GCaMP6f_mouse#M0_iso/ | H145: 7 | I145: 5702 | J145: =I144+J144 -> 54318 | K145: 0, 5000 | L145: 0, 5400 | M145: 89 | N145: same
A146: 144 | B146: TS_C_ISO_M0 | C146: M0 | D146: rec240 | E146: 16 | G146: 20200425_GCaMP6f_mouse#M0_iso/ | H146: 8 | I146: 12847 | J146: =I145+J145 -> 60020 | K146: 5000, 10000 | L146: 5000, 12000 | M146: 89 | N146: same
A147: 145 | B147: TS_C_ISO_M0 | C147: M0 | D147: rec300 | E147: 16 | G147: 20200425_GCaMP6f_mouse#M0_iso/ | H147: 9 | I147: 8213 | J147: =I146+J146 -> 72867 | K147: 0, 5000 | L147: 0, 7900 | M147: 89 | N147: same
A148: 146 | B148: TS_C_ISO_M0 | C148: M0 | D148: rec360 | E148: 16 | G148: 20200425_GCaMP6f_mouse#M0_iso/ | H148: 10 | I148: 8964 | J148: =I147+J147 -> 81080 | K148: 0, 5000 | L148: 0, 8800 | M148: 89 | N148: same
A149: 147 | B149: TS_C_MMF_M0 | C149: M0 | D149: awake | E149: 16 | G149: 20200505_GCaMP6f_mouse#M0_MMF/ | H149: 2 | I149: 13428 | J149: 0 | K149: 4000, 9000 | L149: 4000, 13000 | M149: 60 | N149: Threshold is maybe too high (no peaks at mmf condition will be detected)
A150: 148 | B150: TS_C_MMF_M0 | C150: M0 | D150: mmf | E150: 16 | G150: 20200505_GCaMP6f_mouse#M0_MMF/ | H150: 3 | I150: 18000 | J150: =I149+J149 -> 13428 | K150: 0, 5000 | L150: 0, 18000 | M150: 60
A151: 149 | B151: TS_C_MMF_M0 | C151: M0 | D151: post30 | E151: 16 | G151: 20200505_GCaMP6f_mouse#M0_MMF/ | H151: 4 | I151: 18000 | J151: =I150+J150 -> 31428 | K151: 0, 5000 | L151: 0, 18000 | M151: 60
A152: 150 | B152: TS_C_MMF_M0 | C152: M0 | D152: post60 | E152: 16 | G152: 20200505_GCaMP6f_mouse#M0_MMF/ | H152: 5 | I152: 17432 | J152: =I151+J151 -> 49428 | K152: 0, 5000 | L152: 0, 14000 | M152: 60
A153: 151 | B153: TS_C_MMF_M0 | C153: M0 | D153: post120 | E153: 16 | G153: 20200505_GCaMP6f_mouse#M0_MMF/ | H153: 6 | I153: 9210 | J153: =I152+J152 -> 66860 | K153: 0, 5000 | L153: 0, 9210 | M153: 89
A154: 152 | B154: TS_C_MMF_M0 | C154: M0 | D154: post180 | E154: 16 | G154: 20200505_GCaMP6f_mouse#M0_MMF/ | H154: 7 | I154: 17005 | J154: =I153+J153 -> 76070 | K154: 8000, 13000 | L154: 8000, 16900 | M154: 89
A155: 153 | B155: TS_C_MMF_M0 | C155: M0 | D155: post240 | E155: 16 | G155: 20200505_GCaMP6f_mouse#M0_MMF/ | H155: 8 | I155: 18000 | J155: =I154+J154 -> 93075 | K155: 8700, 13700 | L155: 8700, 18000 | M155: 89
A156: 154 | B156: TS_C_MMF_M0 | C156: M0 | D156: post300 | E156: 16 | G156: 20200505_GCaMP6f_mouse#M0_MMF/ | H156: 9 | I156: 7217 | J156: =I155+J155 -> 111075 | K156: 1000, 6000 | L156: 1000, 7000 | M156: 89
A157: 155 | B157: TS_C_MMF_M0 | C157: M0 | D157: post360 | E157: 16 | G157: 20200505_GCaMP6f_mouse#M0_MMF/ | H157: 10 | I157: 8205 | J157: =I156+J156 -> 118292 | K157: 0, 6000 | L157: 0, 8000 | M157: 89
A158: 156 | B158: TS_C_AWAKE_CTRL_F0 | C158: F0 | D158: awake1 | E158: 16 | G158: 20200609_GCaMP6f_mouse#F0_ctrl_8h/ | H158: 2 | I158: 18000 | J158: 0 | K158: 3000, 8000 | L158: 0,18000 | M158: 12
A159: 157 | B159: TS_C_AWAKE_CTRL_F0 | C159: F0 | D159: awake2 | E159: 16 | G159: 20200609_GCaMP6f_mouse#F0_ctrl_8h/ | H159: 3 | I159: 18000 | J159: =I158+J158 -> 18000 | K159: 10000, 15000 | L159: 8000, 15000 | M159: 12
A160: 158 | B160: TS_C_AWAKE_CTRL_F0 | C160: F0 | D160: awake3 | E160: 16 | G160: 20200609_GCaMP6f_mouse#F0_ctrl_8h/ | H160: 4 | I160: 18000 | J160: =I159+J159 -> 36000 | K160: 4000, 9000 | L160: 3300, 10000 | M160: 12
A161: 159 | B161: TS_C_AWAKE_CTRL_F0 | C161: F0 | D161: awake4 | E161: 16 | G161: 20200609_GCaMP6f_mouse#F0_ctrl_8h/ | H161: 5 | I161: 14578 | J161: =I160+J160 -> 54000 | K161: 4000, 9000 | L161: 4000, 14000 | M161: 12
A162: 160 | B162: TS_C_AWAKE_CTRL_F0 | C162: F0 | D162: awake5 | E162: 16 | G162: 20200609_GCaMP6f_mouse#F0_ctrl_8h/ | H162: 6 | I162: 9043 | J162: =I161+J161 -> 68578 | K162: 0, 5000 | L162: 0, 8900 | M162: 12
A163: 161 | B163: TS_C_AWAKE_CTRL_F0 | C163: F0 | D163: awake6 | E163: 16 | G163: 20200609_GCaMP6f_mouse#F0_ctrl_8h/ | H163: 7 | I163: 14019 | J163: =I162+J162 -> 77621 | K163: 0, 5000 | L163: 0, 14000 | M163: 12
A164: 162 | B164: TS_C_AWAKE_CTRL_F0 | C164: F0 | D164: awake7 | E164: 16 | G164: 20200609_GCaMP6f_mouse#F0_ctrl_8h/ | H164: 8 | I164: 8919 | J164: =I163+J163 -> 91640 | K164: 0, 5000 | L164: 0, 8000 | M164: 12
A165: 163 | B165: TS_C_AWAKE_CTRL_F0 | C165: F0 | D165: awake8 | E165: 16 | G165: 20200609_GCaMP6f_mouse#F0_ctrl_8h/ | H165: 9 | I165: 10312 | J165: =I164+J164 -> 100559 | K165: 0, 5000 | L165: 0, 10000 | M165: 12
A166: 164 | B166: TS_C_AWAKE_CTRL_F1 | C166: F1 | D166: awake1 | E166: 16 | G166: 20200616_GCaMP6f_mouse#F1_ctrl_8h/ | H166: 2 | I166: 18000 | J166: 0 | K166: 0,18000 | L166: 8500, 18000 | M166: 132 | N166: First 18000 frames are recorded with 130 mW. Recordings with 90 and 110 are also availible (18001-23061 and 23062-29276)
A167: 165 | B167: TS_C_AWAKE_CTRL_F1 | C167: F1 | D167: awake2 | E167: 16 | G167: 20200616_GCaMP6f_mouse#F1_ctrl_8h/ | H167: 5 | I167: 10611 | J167: =I166+J166 -> 18000 | K167: 0,10611 | L167: 0, 10000 | M167: 132
A168: 166 | B168: TS_C_AWAKE_CTRL_F1 | C168: F1 | D168: awake3 | E168: 16 | G168: 20200616_GCaMP6f_mouse#F1_ctrl_8h/ | H168: 6 | I168: 8542 | J168: =I167+J167 -> 28611 | K168: 0,8542 | L168: 0, 8000 | M168: 132
A169: 167 | B169: TS_C_AWAKE_CTRL_F1 | C169: F1 | D169: awake4 | E169: 16 | G169: 20200616_GCaMP6f_mouse#F1_ctrl_8h/ | H169: 7 | I169: 12111 | J169: =I168+J168 -> 37153 | K169: 0,12111 | L169: 3000, 11000 | M169: 132
A170: 168 | B170: TS_C_AWAKE_CTRL_F1 | C170: F1 | D170: awake5 | E170: 16 | G170: 20200616_GCaMP6f_mouse#F1_ctrl_8h/ | H170: 8 | I170: 14524 | J170: =I169+J169 -> 49264 | K170: 0,14524 | L170: 0, 14000 | M170: 132
A171: 169 | B171: TS_C_AWAKE_CTRL_F1 | C171: F1 | D171: awake6 | E171: 16 | G171: 20200616_GCaMP6f_mouse#F1_ctrl_8h/ | H171: 9 | I171: 10866 | J171: =I170+J170 -> 63788 | K171: 0,10866 | L171: 0, 10000 | M171: 132
A172: 170 | B172: TS_C_AWAKE_CTRL_F1 | C172: F1 | D172: awake7 | E172: 16 | G172: 20200616_GCaMP6f_mouse#F1_ctrl_8h/ | H172: 10 | I172: 10956 | J172: =I171+J171 -> 74654 | K172: 0,10956 | L172: 0, 10000 | M172: 132
A173: 171 | B173: TS_C_AWAKE_CTRL_F1 | C173: F1 | D173: awake8 | E173: 16 | G173: 20200616_GCaMP6f_mouse#F1_ctrl_8h/ | H173: 11 | I173: 10812 | J173: =I172+J172 -> 85610 | K173: 0,10812 | L173: 0, 10000 | M173: 132
A174: 172 | B174: TS_C_ISO_F1 | C174: F1 | D174: awake | E174: 16 | G174: 20200418_GCaMP6f_mouse#F1_iso/ | H174: 2 | I174: 8214 | J174: 0 | K174: - | L174: 0, 8000 | M174: 89
A175: 173 | B175: TS_C_ISO_F1 | C175: F1 | D175: iso | E175: 16 | G175: 20200418_GCaMP6f_mouse#F1_iso/ | H175: 3 | I175: 18000 | J175: =I174+J174 -> 8214 | K175: - | L175: 0, 18000 | M175: 89
A176: 174 | B176: TS_C_ISO_F1 | C176: F1 | D176: rec30 | E176: 16 | G176: 20200418_GCaMP6f_mouse#F1_iso/ | H176: 4 | I176: 8235 | J176: =I175+J175 -> 26214 | K176: - | L176: 0,8235 | M176: 89 | N176: Significant motion during this recording
A177: 175 | B177: TS_C_ISO_F1 | C177: F1 | D177: rec60 | E177: 16 | G177: 20200418_GCaMP6f_mouse#F1_iso/ | H177: 5 | I177: 18000 | J177: =I176+J176 -> 34449 | K177: - | L177: 0, 18000 | M177: 89
A178: 176 | B178: TS_C_ISO_F1 | C178: F1 | D178: rec120 | E178: 16 | G178: 20200418_GCaMP6f_mouse#F1_iso/ | H178: 6 | I178: 16022 | J178: =I177+J177 -> 52449 | K178: - | L178: 0, 16022 | M178: 89
A179: 177 | B179: TS_C_ISO_F1 | C179: F1 | D179: rec180 | E179: 16 | G179: 20200418_GCaMP6f_mouse#F1_iso/ | H179: 7 | I179: 11790 | J179: =I178+J178 -> 68471 | K179: - | L179: 0, 11790 | M179: 89
A180: 178 | B180: TS_C_ISO_F1 | C180: F1 | D180: rec240 | E180: 16 | G180: 20200418_GCaMP6f_mouse#F1_iso/ | H180: 8 | I180: 15405 | J180: =I179+J179 -> 80261 | K180: - | L180: 0, 15405 | M180: 89
A181: 179 | B181: TS_C_ISO_F1 | C181: F1 | D181: rec300 | E181: 16 | G181: 20200418_GCaMP6f_mouse#F1_iso/ | H181: 9 | I181: 17590 | J181: =I180+J180 -> 95666 | K181: - | L181: 0, 17590 | M181: 89
A182: 180 | B182: TS_C_ISO_F1 | C182: F1 | D182: rec360 | E182: 16 | G182: 20200418_GCaMP6f_mouse#F1_iso/ | H182: 10 | I182: 16450 | J182: =I181+J181 -> 113256 | K182: - | L182: 0, 16450 | M182: 89
A183: 181 | B183: TS_C_KETA_F1 | C183: F1 | D183: awake | E183: 16 | G183: 20200405_GCaMP6f_mouse#F1_keta/ | H183: 2 | I183: 9898 | J183: 0 | K183: - | L183: 0, 9898 | M183: 89
A184: 182 | B184: TS_C_KETA_F1 | C184: F1 | D184: keta | E184: 16 | G184: 20200405_GCaMP6f_mouse#F1_keta/ | H184: 3 | I184: 18000 | J184: =I183+J183 -> 9898 | K184: - | L184: 0, 18000 | M184: 89
A185: 183 | B185: TS_C_KETA_F1 | C185: F1 | D185: keta30 | E185: 16 | G185: 20200405_GCaMP6f_mouse#F1_keta/ | H185: 4 | I185: 18000 | J185: =I184+J184 -> 27898 | K185: - | L185: 0, 18000 | M185: 89
A186: 184 | B186: TS_C_KETA_F1 | C186: F1 | D186: keta60 | E186: 16 | G186: 20200405_GCaMP6f_mouse#F1_keta/ | H186: 5 | I186: 18000 | J186: =I185+J185 -> 45898 | K186: - | L186: 0, 18000 | M186: 89
A187: 185 | B187: TS_C_KETA_F1 | C187: F1 | D187: keta120 | E187: 16 | G187: 20200405_GCaMP6f_mouse#F1_keta/ | H187: 6 | I187: 9112 | J187: =I186+J186 -> 63898 | K187: - | L187: 0, 9112 | M187: 89
A188: 186 | B188: TS_C_KETA_F1 | C188: F1 | D188: keta180 | E188: 16 | G188: 20200405_GCaMP6f_mouse#F1_keta/ | H188: 7 | I188: 17295 | J188: =I187+J187 -> 73010 | K188: - | L188: 0, 17295 | M188: 89
A189: 187 | B189: TS_C_KETA_F1 | C189: F1 | D189: keta240 | E189: 16 | G189: 20200405_GCaMP6f_mouse#F1_keta/ | H189: 8 | I189: 10307 | J189: =I188+J188 -> 90305 | K189: - | L189: 0, 10307 | M189: 89
A190: 188 | B190: TS_C_KETA_F1 | C190: F1 | D190: keta300 | E190: 16 | G190: 20200405_GCaMP6f_mouse#F1_keta/ | H190: 9 | I190: 29202 | J190: =I189+J189 -> 100612 | K190: - | L190: 18000, 29202 | M190: 89
A191: 189 | B191: TS_C_KETA_F1 | C191: F1 | D191: keta360 | E191: 16 | G191: 20200405_GCaMP6f_mouse#F1_keta/ | H191: 10 | I191: 10110 | J191: =I190+J190 -> 129814 | K191: - | L191: 0, 10110 | M191: 89
A192: 190 | B192: TS_C_MMF_F1 | C192: F1 | D192: awake | E192: 16 | G192: 20200412_GCaMP6f_mouse#F1_MMF/ | H192: 2 | I192: 8437 | J192: 0 | K192: - | L192: 0, 8437 | M192: 89
A193: 191 | B193: TS_C_MMF_F1 | C193: F1 | D193: mmf | E193: 16 | G193: 20200412_GCaMP6f_mouse#F1_MMF/ | H193: 3 | I193: 18000 | J193: =I192+J192 -> 8437 | K193: - | L193: 0, 18000 | M193: 89
A194: 192 | B194: TS_C_MMF_F1 | C194: F1 | D194: post30 | E194: 16 | G194: 20200412_GCaMP6f_mouse#F1_MMF/ | H194: 4 | I194: 18000 | J194: =I193+J193 -> 26437 | K194: - | L194: 0, 18000 | M194: 89
A195: 193 | B195: TS_C_MMF_F1 | C195: F1 | D195: post60 | E195: 16 | G195: 20200412_GCaMP6f_mouse#F1_MMF/ | H195: 5 | I195: 18000 | J195: =I194+J194 -> 44437 | K195: - | L195: 0, 18000 | M195: 89
A196: 194 | B196: TS_C_MMF_F1 | C196: F1 | D196: post120 | E196: 16 | G196: 20200412_GCaMP6f_mouse#F1_MMF/ | H196: 6 | I196: 16374 | J196: =I195+J195 -> 62437 | K196: - | L196: 0, 16374 | M196: 89
A197: 195 | B197: TS_C_MMF_F1 | C197: F1 | D197: post180 | E197: 16 | G197: 20200412_GCaMP6f_mouse#F1_MMF/ | H197: 7 | I197: 12255 | J197: =I196+J196 -> 78811 | K197: - | L197: 0, 12255 | M197: 89
A198: 196 | B198: TS_C_MMF_F1 | C198: F1 | D198: post240 | E198: 16 | G198: 20200412_GCaMP6f_mouse#F1_MMF/ | H198: 8 | I198: 18000 | J198: =I197+J197 -> 91066 | K198: - | L198: 0, 18000 | M198: 89
A199: 197 | B199: TS_C_MMF_F1 | C199: F1 | D199: post300 | E199: 16 | G199: 20200412_GCaMP6f_mouse#F1_MMF/ | H199: 9 | I199: 15623 | J199: =I198+J198 -> 109066 | K199: - | L199: 0, 15623 | M199: 89
A200: 198 | B200: TS_C_MMF_F1 | C200: F1 | D200: post360 | E200: 16 | G200: 20200412_GCaMP6f_mouse#F1_MMF/ | H200: 10 | I200: 16259 | J200: =I199+J199 -> 124689 | K200: - | L200: 0, 16259 | M200: 89
